[Event "Croatian 1A League 2022"]
[Site "Porec"]
[Date "2022.09.28"]
[Round "5.13"]
[White "Kozul, Zdenko"]
[Black "Shevchenko, Kirill"]
[Result "0-1"]
[ECO "D10"]
[WhiteElo "2549"]
[BlackElo "2645"]
[Annotator "TA"]
[PlyCount "46"]
[EventDate "2022.09.24"]
[EventType "team-tourn"]
[EventCountry "CRO"]
[SourceTitle "playchess.com"]
[Source "ChessBase"]
[SourceQuality "1"]
[TimeControl "40/5400+30:1800+30"]

{[%evp 10,46,29,28,27,24,20,25,23,21,22,30,18,0,-5,-52,-64,-66,-65,-55,-78,-218,-214,-255,-264,-502,-478,-483,-460,-523,-526,-1274,-1219,-2494,-1766,-29987,-29988,-29988,-29989]} 1. d4 {[%emt 0:00:51]} Nf6 {[%emt 0:00:08]} 2. c4 {[%emt 0:00:16]} c6 {[%emt 0:00:06]} 3. Nc3 {[%emt 0:03:24]} d5 {[%emt 0:01:09]} 4. e3 {[%emt 0:00:21]} Bf5 {[%emt 0:00:08]} 5. cxd5 {[%emt 0:01:30]} cxd5 {[%emt 0:00:05]} 6. Qb3 {[%emt 0:00:20]} Nc6 $1 {[%emt 0:00:24][%mdl 4] is recently more successful than 6...Bc8. D10: Slav Defence: 3 cxd5 (without early Nf3) and 3 Nc3.} 7. Qxb7 {[%emt 0:01:32]} Bd7 $1 {[%emt 0:00:20] Threatens to win with ...Rb8.} 8. Qb3 {[%emt 0:01:16]} Rb8 {[%emt 0:00:32] White has an edge.} 9. Qd1 {[%emt 0:00:19]} e5 {[%emt 0:00:26]} 10. Nf3 {[%emt 0:06:54]} Bd6 {[%emt 0:01:32] [#]} 11. a3 $146 {[%emt 0:09:48]} ({Predecessor:} 11. dxe5 Nxe5 12. Be2 O-O 13. O-O Qe7 14. a4 Rfc8 15. g3 Bh3 16. Re1 Bb4 17. Nxe5 Qxe5 {½-½ (46) Markus,R (2609)-Guseinov,G (2665) Terme Catez 2021}) 11... O-O {[%emt 0:16:48]} 12. b4 {[%emt 0:04:12]} (12. dxe5 $11 {feels stronger.} Nxe5 13. Be2) 12... exd4 $1 $15 {[%emt 0:15:12]} 13. exd4 {[%emt 0:01:35]} Re8+ {[%emt 0:13:12]} 14. Be2 {[%emt 0:01:21]} Ne4 $1 {[%emt 0:00:15]} 15. Nxd5 {[%emt 0:21:53]} (15. Bd2 $17 {was worth a try.}) 15... Ne7 $1 $19 {[%emt 0:02:02]} 16. Ne3 {[%emt 0:02:14] [#]} Nc3 $1 {[%emt 0:01:17]} 17. Qd2 {[%emt 0:01:00]} (17. Qb3 Nxe2 18. Kxe2) 17... Nxe2 {[%emt 0:00:54]} ({Inferior is} 17... Ned5 18. Bd3 $11) 18. Qxe2 {[%emt 0:00:09] [#]} Bb5 $1 {[%emt 0:00:53]} 19. Qd2 {[%emt 0:11:20]} Nd5 {[%emt 0:03:45]} 20. g3 {[%emt 0:07:59]} Qf6 {[%emt 0:02:00] Against Ne5. ( -> ...Nxe3)} 21. Ne5 {[%emt 0:08:10]} Bxe5 {[%emt 0:03:28]} 22. dxe5 {[%emt 0:00:06]} Qf3 {[%emt 0:01:00]} 23. Rg1 {[%emt 0:04:51]} Rbd8 {[%emt 0:00:14] Black took control after the opening.  Weighted Error Value: White=1.29/Black=0.00 (flawless)} 0-1

[Event "Croatian 1A League 2022"]
[Site "Porec"]
[Date "2022.09.28"]
[Round "5.14"]
[White "Erdos, Viktor"]
[Black "Stevic, Hrvoje"]
[Result "1/2-1/2"]
[ECO "C58"]
[WhiteElo "2597"]
[BlackElo "2565"]
[Annotator "TA"]
[PlyCount "34"]
[EventDate "2022.09.24"]
[EventType "team-tourn"]
[EventCountry "CRO"]
[SourceTitle "playchess.com"]
[Source "ChessBase"]
[SourceQuality "1"]
[TimeControl "40/5400+30:1800+30"]

{[%evp 13,21,36,34,33,39,45,30,45,35,10]} 1. e4 {[%emt 0:04:58]} e5 {[%emt 0:00:17]} 2. Nf3 {[%emt 0:00:05]} Nc6 {[%emt 0:00:06]} 3. Bc4 {[%emt 0:00:04]} Nf6 {[%emt 0:00:22]} 4. Ng5 {[%emt 0:00:07]} d5 {[%emt 0:00:30]} 5. exd5 {[%emt 0:00:05]} Na5 {[%emt 0:00:05]} 6. Bb5+ {[%emt 0:00:04]} Bd7 {[%emt 0:01:18]} 7. Qe2 {[%emt 0:00:21]} Be7 {[%emt 0:07:03]} 8. Nf3 {[%emt 0:04:27] C58: Two Knights: 4 Ng5 d5 5 exd5 Na5 sidelines.} Nxd5 {[%emt 0:02:50]} 9. Bxd7+ {[%emt 0:14:04]} Qxd7 {[%emt 0:02:17]} 10. Nxe5 {[%emt 0:01:19]} Qe6 {[%emt 0:17:30]} 11. d4 {[%emt 0:35:46] [#] White got outplayed after the opening.  Weighted Error Value: White=0.00 (flawless) /Black=0.00 (flawless)} {Predecessor:} O-O-O $146 12. Bd2 Nb4 13. Be3 Nac6 14. Nxc6 Qxc6 15. Nc3 Qxg2 16. O-O-O Nd5 17. Nxd5 Qxd5 {½-½ (24) Pytlik,L (2361)-Vozda,J (2494) ICCF email 2004} 1/2-1/2

[Event "Croatian 1A League 2022"]
[Site "Porec"]
[Date "2022.09.28"]
[Round "5.15"]
[White "Palac, Mladen"]
[Black "Muse, Drazen"]
[Result "1/2-1/2"]
[ECO "C41"]
[WhiteElo "2516"]
[BlackElo "2311"]
[Annotator "TA"]
[PlyCount "57"]
[EventDate "2022.09.24"]
[EventType "team-tourn"]
[EventCountry "CRO"]
[SourceTitle "playchess.com"]
[Source "ChessBase"]
[SourceQuality "1"]
[TimeControl "40/5400+30:1800+30"]

{[%evp 11,57,35,35,24,40,40,51,43,56,46,45,22,41,35,35,41,39,30,39,28,46,-26,47,58,55,50,56,53,51,56,60,41,43,61,61,18,18,19,8,0,0,-28,-28,-31,-33,-27,-29,-36]} 1. e4 {[%emt 0:05:21]} e5 {[%emt 0:00:05]} 2. Nf3 {[%emt 0:00:12]} d6 {[%emt 0:00:04]} 3. d4 {[%emt 0:00:12]} exd4 {[%emt 0:00:04]} 4. Nxd4 {[%emt 0:00:04]} Nf6 {[%emt 0:00:05]} 5. Nc3 {[%emt 0:00:06]} Be7 {[%emt 0:00:04]} 6. g3 {[%emt 0:00:21]} O-O {[%emt 0:00:21]} 7. Bg2 {[%emt 0:00:04] C41: Philidor Defence.} Re8 {[%emt 0:00:06][%cal Od6d5]} 8. O-O {[%emt 0:00:19]} Bf8 {[%emt 0:00:14]} 9. h3 {[%emt 0:03:05] White is slightly better.} c6 {[%emt 0:00:15]} 10. g4 {[%emt 0:02:35]} Na6 {[%emt 0:00:09][%cal Bb8a6,Ba6c5,Bc5e6][%mdl 32] 10...a5 is the recent fashion.} 11. Bg5 {[%emt 0:15:48]} Nc5 {[%emt 0:15:46]} 12. Re1 {[%emt 0:03:20]} Ne6 {[%emt 0:01:33]} 13. Be3 {[%emt 0:00:43][%cal Bg5e3,Be3f4,Bf4g3][%mdl 32]} Nc5 {[%emt 0:01:53]} 14. Bf4 {[%emt 0:17:11]} Ne6 {[%emt 0:20:28]} 15. Bg3 {[%emt 0:00:40] [#]} Nd7 $146 {[%emt 0:02:42]} ({Predecessor:} 15... Qb6 16. Nb3 a5 17. a4 Nc5 18. Nxc5 Qxc5 19. Qd2 Be6 20. Ne2 d5 21. e5 Ne4 22. Bxe4 dxe4 23. Nc3 Rad8 {0-1 (56) Sukovic,A (2282)-Popchev,M (2262) Novi Sad 2021}) 16. Nb3 {[%emt 0:03:57]} ({Better is} 16. Nxe6 $14 Rxe6 17. Ne2) 16... Ne5 {[%emt 0:05:51]} (16... h5 $1 $11) 17. f4 $14 {[%emt 0:01:23][%cal Bf2f4,Bf4f5][%mdl 32]} Nc4 {[%emt 0:00:35]} 18. f5 {[%emt 0:10:33]} Nc7 {[%emt 0:00:31]} 19. Qd4 {[%emt 0:00:10]} Ne5 {[%emt 0:01:51]} 20. Rad1 {[%emt 0:00:01] [#] Black must now prevent Bxe5.} Qe7 {[%emt 0:04:26]} 21. a4 {[%emt 0:01:11]} b6 {[%emt 0:05:48]} 22. Qf2 {[%emt 0:01:57]} Na6 {[%emt 0:05:59]} 23. Ne2 {[%emt 0:04:16] White is more active.} Nc5 {[%emt 0:00:43]} 24. Nxc5 {[%emt 0:01:45]} bxc5 {[%emt 0:00:07]} 25. Nf4 {[%emt 0:01:53]} Ba6 {[%emt 0:00:48]} 26. Bf1 {[%emt 0:02:31]} Bxf1 {[%emt 0:00:27]} 27. Kxf1 {[%emt 0:01:05]} Qb7 {[%emt 0:00:07]} 28. b3 {[%emt 0:04:51]} c4 {[%emt 0:03:27]} 29. bxc4 {[%emt 0:04:32] Weighted Error Value: White=0.12 (very precise) /Black=0.07 (flawless)} 1/2-1/2

[Event "Croatian 1A League 2022"]
[Site "Porec"]
[Date "2022.09.28"]
[Round "5.16"]
[White "Trbojevic, Mladen"]
[Black "Petkov, Vladimir"]
[Result "0-1"]
[ECO "B30"]
[WhiteElo "2332"]
[BlackElo "2451"]
[Annotator "TA"]
[PlyCount "66"]
[EventDate "2022.09.24"]
[EventType "team-tourn"]
[EventCountry "CRO"]
[SourceTitle "playchess.com"]
[Source "ChessBase"]
[SourceQuality "1"]
[TimeControl "40/5400+30:1800+30"]

{[%evp 19,66,35,37,35,39,19,23,8,16,2,12,18,20,10,38,24,74,-54,-61,-64,-46,-57,-57,-58,-47,-60,0,0,0,0,0,0,0,0,0,-90,-96,-211,-31,-27,-33,-23,-31,-33,-39,-71,-66,-516,-512]} 1. e4 {[%emt 0:00:48]} c5 {[%emt 0:01:02]} 2. Nf3 {[%emt 0:00:47]} Nc6 {[%emt 0:00:40]} 3. Bb5 {[%emt 0:02:48]} e6 {[%emt 0:00:37]} 4. O-O {[%emt 0:00:34]} Nge7 {[%emt 0:01:18]} 5. Re1 {[%emt 0:00:51]} a6 {[%emt 0:02:01]} 6. Bf1 {[%emt 0:00:25]} d5 {[%emt 0:04:58]} 7. exd5 {[%emt 0:02:34]} Nxd5 {[%emt 0:01:12]} 8. d4 {[%emt 0:01:26]} Be7 {[%emt 0:17:06]} 9. dxc5 {[%emt 0:08:41]} O-O {[%emt 0:02:31]} 10. c4 {[%emt 0:06:35]} Nf6 {[%emt 0:04:31]} 11. Nc3 {[%emt 0:03:37] B30: Sicilian: 2...Nc6 3 Bb5, lines without ...g6.} Bxc5 {[%emt 0:03:28]} 12. Qxd8 {[%emt 0:26:27]} Rxd8 {[%emt 0:00:30]} 13. Bf4 {[%emt 0:00:24] White has an edge.} Bd7 {[%emt 0:08:56] [#]} 14. Red1 $146 {[%emt 0:13:14]} ({Predecessor:} 14. Rad1 Be8 15. Be3 Bxe3 16. fxe3 Rxd1 17. Rxd1 Ng4 18. e4 Rc8 19. Be2 Nce5 20. Rd4 {½-½ (65) Learte Pastor,T (2371)-Bures,J (2483) ICCF email 2009}) 14... Ne7 {[%emt 0:19:56][%cal Bc6e7,Be7f5,Bf5d4,Bd4f3][%mdl 32]} 15. Ne5 {[%emt 0:05:10]} Be8 {[%emt 0:03:41]} 16. Be2 {[%emt 0:00:45]} Nf5 {[%emt 0:08:00]} 17. Bf3 {[%emt 0:06:14]} Bd4 {[%emt 0:04:58]} (17... Rd4 $1 $11 {keeps the balance.} 18. Ne2 (18. Bxb7 Ra7 $17) (18. Rxd4 Bxd4 19. g4 Nh4 $14) 18... Rxd1+ 19. Rxd1 Nh4) 18. Rab1 {[%emt 0:04:53]} ({But not} 18. Bxb7 Rab8 19. Bf3 Rxb2 $11) (18. g4 $16 Nh4 19. Bxb7) 18... g5 $1 $15 {[%emt 0:01:26]} 19. Rxd4 {[%emt 0:04:51]} Nxd4 {[%emt 0:00:33]} 20. Bxg5 {[%emt 0:00:16]} Nxf3+ {[%emt 0:00:20]} 21. gxf3 {[%emt 0:01:42]} Kg7 {[%emt 0:01:20]} 22. Kh1 {[%emt 0:03:41] Black must now prevent Rg1.} Nd7 {[%emt 0:04:13]} (22... Nh5 $15 23. Bxd8 Rxd8) 23. Bxd8 $11 {[%emt 0:02:16]} Nxe5 {[%emt 0:00:07]} 24. Rg1+ $1 {[%emt 0:00:22]} Ng6 {[%emt 0:01:10]} 25. Bb6 {[%emt 0:00:45]} f5 {[%emt 0:00:30]} 26. Ne2 {[%emt 0:01:44]} e5 {[%emt 0:00:40]} 27. Ng3 {[%emt 0:00:40] [#]} (27. Rd1 $11) 27... Bc6 $1 $17 {[%emt 0:00:33]} 28. Kg2 {[%emt 0:00:34] [#]} ({Don't go for} 28. Nxf5+ $2 Kf6 29. Rxg6+ hxg6 $19) (28. h3 $17) 28... Kf6 $2 {[%emt 0:00:34]} ({Black should try} 28... Nh4+ $1 $19 29. Kh3 Nxf3) 29. Rd1 $1 $15 {[%emt 0:00:51]} Nf4+ {[%emt 0:02:41]} 30. Kf1 {[%emt 0:00:13]} Bxf3 {[%emt 0:00:31]} 31. Rd6+ {[%emt 0:00:14]} Ne6 {[%emt 0:00:09]} 32. Ne2 {[%emt 0:01:25]} Ke7 {[%emt 0:01:26]} 33. Rd3 $2 {[%emt 0:00:31][%mdl 8192]} (33. Rd2 $1 $15) 33... Bxe2+ {[%emt 0:00:06] Weighted Error Value: White=0.52/Black=0.23 (precise)} 0-1

[Event "Croatian 1A League 2022"]
[Site "Porec"]
[Date "2022.09.28"]
[Round "5.17"]
[White "Zelcic, Robert"]
[Black "Vernacki, Srdjan"]
[Result "1/2-1/2"]
[ECO "B53"]
[WhiteElo "2495"]
[BlackElo "2280"]
[Annotator "TA"]
[PlyCount "105"]
[EventDate "2022.09.24"]
[EventType "team-tourn"]
[EventCountry "CRO"]
[SourceTitle "playchess.com"]
[Source "ChessBase"]
[SourceQuality "1"]
[TimeControl "40/5400+30:1800+30"]

{[%evp 23,105,21,9,9,4,12,51,55,49,46,50,0,23,0,0,0,110,27,26,24,26,35,53,42,56,19,6,8,3,21,29,28,29,10,24,25,31,15,50,27,33,20,24,20,47,-85,-77,-85,-77,-160,-157,-151,-141,-233,-247,-234,-210,-233,-181,-243,-239,-243,-236,-223,-145,-136,0,0,0,-127,0,0,0,0,0,0,0,0,0,0,0,0,0,0]} 1. e4 {[%emt 0:00:03]} c5 {[%emt 0:00:05]} 2. Nf3 {[%emt 0:00:04]} e6 {[%emt 0:00:04]} 3. Nc3 {[%emt 0:00:04]} d6 {[%emt 0:00:31]} 4. d4 {[%emt 0:00:16]} cxd4 {[%emt 0:00:05]} 5. Qxd4 {[%emt 0:00:04]} Nc6 {[%emt 0:04:22]} 6. Bb5 {[%emt 0:00:06]} Bd7 {[%emt 0:01:22]} 7. Bxc6 {[%emt 0:00:06]} Bxc6 {[%emt 0:02:26]} 8. Bg5 {[%emt 0:00:06]} Nf6 {[%emt 0:03:44]} 9. O-O-O {[%emt 0:00:21]} Be7 {[%emt 0:00:51]} 10. Qd3 {[%emt 0:00:04]} O-O {[%emt 0:06:15]} 11. Nd4 {[%emt 0:00:09]} Rc8 {[%emt 0:04:01]} 12. f4 {[%emt 0:00:28]} a6 {[%emt 0:09:56]} 13. Kb1 {[%emt 0:19:05] B53: Sicilian: 2...d6: Lines with Qxd4.} b5 {[%emt 0:21:10]} 14. e5 {[%emt 0:37:03]} Ne8 {[%emt 0:01:20]} 15. Nxc6 {[%emt 0:02:21] White is slightly better.} Rxc6 {[%emt 0:00:08]} 16. Ne4 {[%emt 0:00:20] Black must now prevent exd6.} d5 {[%emt 0:09:37] [#]} 17. Rhe1 $146 {[%emt 0:14:49]} ({Predecessor:} 17. Bxe7 Qxe7 18. Ng5 f5 19. Nf3 Nc7 20. Nd4 Rc4 21. b3 Rc5 22. Qd2 Ra8 23. g4 fxg4 {1-0 (39) Hoang,C (2408)-Tran,Q (2286) Vietnam 2016}) 17... h6 {[%emt 0:11:03]} 18. Bxe7 {[%emt 0:02:22]} (18. h4 $5) 18... Qxe7 {[%emt 0:00:01]} 19. Ng3 {[%emt 0:00:37][%cal Be4g3,Bg3f5,Bf5d4][%mdl 32]} f5 {[%emt 0:02:12] [#]} (19... Rc4 $11 {remains equal.}) 20. exf6 {[%emt 0:00:06]} ({Better is} 20. Ne2 $1 $16) 20... Nxf6 $11 {[%emt 0:00:51]} 21. Nf5 {[%emt 0:00:12] Prevents Qd6.} Qf7 {[%emt 0:06:31]} 22. Nd4 {[%emt 0:00:53]} Rd6 {[%emt 0:00:40]} 23. Qa3 {[%emt 0:02:00]} Qd7 {[%emt 0:03:31]} 24. f5 {[%emt 0:00:26]} exf5 {[%emt 0:00:27] [#]} 25. Nxf5 $1 {[%emt 0:02:14]} Re6 {[%emt 0:00:22] Hoping for ...Rxe1.} 26. Rf1 {[%emt 0:02:09]} Rfe8 {[%emt 0:01:06]} 27. Nd4 {[%emt 0:00:25]} Rd6 {[%emt 0:01:31]} 28. Qb3 {[%emt 0:01:16]} Kh8 {[%emt 0:00:53]} 29. a3 {[%emt 0:00:11]} Rb6 {[%emt 0:00:58]} 30. Qb4 {[%emt 0:08:00]} Qd6 {[%emt 0:02:05]} 31. g3 {[%emt 0:03:29]} Re4 {[%emt 0:02:33]} 32. Qxd6 {[%emt 0:02:56]} Rxd6 {[%emt 0:00:02][%cal Bb6d6,Bd6d8,Bd8f8,Bf8f2][%mdl 32]} 33. c3 {[%emt 0:00:01]} Rd8 {[%emt 0:01:00]} 34. Kc2 {[%emt 0:00:14]} (34. Rd2 $14 {keeps the upper hand.}) 34... Ng4 $17 {[%emt 0:00:29]} 35. Nf5 {[%emt 0:01:07]} Nxh2 {[%emt 0:00:49]} 36. Rfe1 {[%emt 0:00:42] [#]} ({White should play} 36. Rf4 Rxf4 37. gxf4) 36... Rf8 $1 {[%emt 0:02:43]} 37. Ne7 {[%emt 0:02:23]} Rf2+ {[%emt 0:01:01]} 38. Kb3 {[%emt 0:00:47]} (38. Kc1 $17 {was worth a try.}) 38... Nf3 $19 {[%emt 0:00:33]} 39. Rxe4 {[%emt 0:00:02]} dxe4 {[%emt 0:00:08][%mdl 4096] Endgame KRN-KRN} 40. Nd5 {[%emt 0:00:00]} Ne5 {[%emt 0:00:00]} 41. a4 {[%emt 0:05:37]} (41. Kb4 $142) 41... Nd3 {[%emt 0:06:49]} ({And not} 41... bxa4+ 42. Kxa4 Rxb2 43. Re1) 42. axb5 {[%emt 0:01:17]} axb5 {[%emt 0:00:22]} ({Don't go for} 42... Rxb2+ $2 43. Kc4 axb5+ 44. Kd4) 43. Ka3 {[%emt 0:06:10]} Rf5 {[%emt 0:13:57]} ({Inferior is} 43... Nxb2 44. Re1) 44. Nb4 {[%emt 0:00:56]} Rf3 {[%emt 0:04:54]} (44... Nf2 $17 45. Rd5 Rf3 46. Rxb5 Rxg3) 45. Nxd3 $11 {[%emt 0:02:36]} Rxd3 {[%emt 0:00:13] KR-KR} 46. Rg1 {[%emt 0:00:22]} (46. Rb1 $11 {keeps the balance.}) 46... e3 {[%emt 0:01:44]} (46... Kh7 $17 {Strongly threatening ...e3.} 47. Kb4 Kg6 48. Kxb5 Kf5 49. Rf1+ Rf3) 47. Kb4 {[%emt 0:00:17] The position is equal.} e2 {[%emt 0:02:09] ...Rd1 is the strong threat.} 48. Re1 {[%emt 0:00:04]} Rxg3 {[%emt 0:00:05]} 49. Kxb5 {[%emt 0:00:18]} Re3 {[%emt 0:03:02] aiming for ...g5.} 50. Kc4 {[%emt 0:01:35]} Kg8 {[%emt 0:01:10]} 51. b4 {[%emt 0:00:37]} Kf7 {[%emt 0:00:29]} 52. Kd4 {[%emt 0:00:49]} Re6 {[%emt 0:00:08]} 53. Kd3 {[%emt 0:02:10] White happily takes the draw.  Weighted Error Value: White=0.23 (precise) /Black=0.19 (very precise)} 1/2-1/2

[Event "Croatian 1A League 2022"]
[Site "Porec"]
[Date "2022.09.28"]
[Round "5.18"]
[White "Tomasic, Roland"]
[Black "Jankovic, Alojzije"]
[Result "0-1"]
[ECO "B47"]
[WhiteElo "2126"]
[BlackElo "2548"]
[Annotator "TA"]
[PlyCount "44"]
[EventDate "2022.09.24"]
[EventType "team-tourn"]
[EventCountry "CRO"]
[SourceTitle "playchess.com"]
[Source "ChessBase"]
[SourceQuality "1"]
[TimeControl "40/5400+30:1800+30"]

{[%evp 9,44,16,27,-319,-324,-370,-370,-380,-364,-457,-471,-483,-470,-562,-571,-592,-587,-631,-582,-599,-554,-557,-560,-550,-545,-534,-503,-650,-635,-752,-741,-788,-769,-880,-850,-920,-910]} 1. e4 {[%emt 0:02:49]} c5 {[%emt 0:00:24]} 2. Nf3 {[%emt 0:00:05]} e6 {[%emt 0:00:28]} 3. d4 {[%emt 0:00:09]} cxd4 {[%emt 0:00:06]} 4. Nxd4 {[%emt 0:00:01]} Nc6 {[%emt 0:00:17]} 5. Nc3 {[%emt 0:00:13]} Qc7 {[%emt 0:00:15] [#]} 6. Qf3 $146 {[%emt 0:00:39][%mdl 8192] [#] B47: Sicilian: Taimanov: 5 Nc3 Qc7 6 f4, 6 g3 and 6 Be2.} ({Predecessor:} 6. Nxc6 bxc6 7. Qd3 d5 8. Qg3 Qxg3 9. hxg3 Nf6 10. Be2 Bb4 11. Bd2 Rb8 12. f3 d4 13. Nd1 Bxd2+ 14. Kxd2 {1-0 (55) Nakamura,H (2760)-Moussard,J (2672) Chess.com INT 2022}) 6... Nxd4 $19 {[%emt 0:00:14]} 7. Qd1 {[%emt 0:00:38]} Nc6 {[%emt 0:00:15]} 8. Bd3 {[%emt 0:00:47] Black is winning.} Nf6 {[%emt 0:00:26]} 9. g4 {[%emt 0:00:17]} d5 {[%emt 0:00:59][%cal Bd7d5,Bd5e4][%mdl 32] Black is clearly winning.} 10. Nb5 {[%emt 0:02:46]} Qb8 {[%emt 0:00:44]} 11. g5 {[%emt 0:03:55]} Nxe4 {[%emt 0:01:08]} 12. Bxe4 {[%emt 0:00:06]} dxe4 {[%emt 0:01:25]} 13. Be3 {[%emt 0:03:26]} a6 {[%emt 0:00:30]} 14. Nc3 {[%emt 0:00:03]} Bb4 {[%emt 0:00:49]} 15. Qg4 {[%emt 0:00:18]} Qe5 {[%emt 0:00:41]} 16. O-O {[%emt 0:00:27]} Bxc3 {[%emt 0:00:32]} 17. bxc3 {[%emt 0:00:03]} Qf5 {[%emt 0:00:29]} 18. Qg3 {[%emt 0:00:30]} Ne5 {[%emt 0:00:29]} 19. f3 {[%emt 0:03:41]} Nxf3+ {[%emt 0:00:29]} 20. Kh1 {[%emt 0:00:04]} O-O {[%emt 0:00:17]} 21. Rad1 {[%emt 0:00:39]} e5 {[%emt 0:00:16]} 22. Rd6 {[%emt 0:03:37]} Be6 {[%emt 0:00:33] White did not feel at home in the position after the opening.  Weighted Error Value: White=0.78/Black=0.10 (very precise)} 0-1

[Event "Croatian 1A League 2022"]
[Site "Porec"]
[Date "2022.09.28"]
[Round "5.19"]
[White "Kaczur, Florian"]
[Black "Donchenko, Alexander"]
[Result "1/2-1/2"]
[ECO "B11"]
[WhiteElo "2483"]
[BlackElo "2639"]
[Annotator "TA"]
[PlyCount "41"]
[EventDate "2022.09.24"]
[EventType "team-tourn"]
[EventCountry "CRO"]
[SourceTitle "playchess.com"]
[Source "ChessBase"]
[SourceQuality "1"]
[TimeControl "40/5400+30:1800+30"]

{[%evp 10,41,14,14,29,29,35,23,20,20,25,28,22,20,16,21,24,2,4,11,20,24,46,24,68,67,121,110,139,0,140,0,112,0]} 1. e4 {[%emt 0:00:04]} c6 {[%emt 0:00:06]} 2. Nc3 {[%emt 0:00:55]} d5 {[%emt 0:00:09]} 3. Nf3 {[%emt 0:00:22]} dxe4 {[%emt 0:00:26]} 4. Nxe4 {[%emt 0:00:07]} Nf6 {[%emt 0:00:05]} 5. Qe2 {[%emt 0:01:59]} Nxe4 {[%emt 0:00:31]} 6. Qxe4 {[%emt 0:00:03]} Nd7 {[%emt 0:00:07] B11: Caro-Kann: Two Knights Variation.} 7. d4 {[%emt 0:03:30]} Nf6 {[%emt 0:00:13]} 8. Qd3 {[%emt 0:01:00]} g6 {[%emt 0:00:16] White has an edge.} 9. Be2 {[%emt 0:01:04]} Bf5 {[%emt 0:00:16]} 10. Qb3 {[%emt 0:03:16]} Qb6 {[%emt 0:00:15]} 11. c3 {[%emt 0:02:21]} Bg7 {[%emt 0:01:14]} 12. O-O {[%emt 0:03:11]} O-O {[%emt 0:01:27]} 13. Bf4 {[%emt 0:06:01] [#]} Nd5 $146 {[%emt 0:02:10]} ({Predecessor:} 13... Rac8 14. Be5 Rfd8 15. Bc4 Qxb3 16. axb3 a6 17. b4 Nd5 18. Bxg7 Kxg7 19. Rfe1 Re8 {1-0 (54) Fishbein,A (2434)-Jeet,J (2279) Chess.com INT 2022}) 14. Bg3 {[%emt 0:05:18]} Bh6 {[%emt 0:07:00]} 15. Rfe1 {[%emt 0:02:28]} Rad8 {[%emt 0:09:18]} 16. Qa3 {[%emt 0:05:15]} Rc8 {[%emt 0:24:11]} 17. Ne5 {[%emt 0:07:34]} c5 {[%emt 0:05:48]} (17... f6 $14) 18. Nc4 $16 {[%emt 0:03:41]} Qc6 {[%emt 0:10:01]} 19. Ne5 {[%emt 0:06:58]} ({Resist} 19. Qxa7 cxd4 20. Qxd4 Rfd8 $16) 19... Qb6 {[%emt 0:00:57]} 20. Nc4 {[%emt 0:02:45]} Qc6 {[%emt 0:00:15]} 21. Ne5 {[%emt 0:05:30] Weighted Error Value: White=0.25 (precise) /Black=0.11 (very precise)} (21. Na5 $16 Qb6 22. Bf3) 1/2-1/2